fUSD/lending_fUSD_20260202
["ID","MTS","AMOUNT","RATE_DAILY","PERIOD"]
[404321450,1770058192978,10000.01,0.00010516,2]
[404321451,1770058199343,-10000.01,0.00010516,2]
[404321452,1770058201273,-10000.01,0.00010516,2]
[404321453,1770058201565,-1200.0,0.00010515,2]
[404321454,1770058201578,-8800.01,0.00010516,2]
[404321455,1770058201620,-10000.01,0.00010516,2]
[404321456,1770058201719,-10000.01,0.00010516,2]
[404321457,1770058201845,-10000.01,0.00010516,2]
[404321458,1770058202020,-10000.01,0.00010516,2]
[404321459,1770058202148,-10000.01,0.00010516,2]
[404321460,1770058202288,-10000.01,0.00010516,2]
[404321461,1770058204309,-10000.01,0.00010516,2]
[404321462,1770058204424,-10000.01,0.00010516,2]
[404321463,1770058207488,-10000.01,0.00010516,2]
[404321464,1770058207698,-10000.01,0.00010516,2]
[404321465,1770058207826,-10000.01,0.00010516,2]
[404321466,1770058207939,-10000.01,0.00010516,2]
[404321467,1770058208066,-10000.01,0.00010516,2]
[404321468,1770058208187,-10000.01,0.00010516,2]
[404321469,1770058208313,-10000.01,0.00010516,2]
[404321470,1770058208461,-10000.01,0.00010516,2]
[404321471,1770058210408,-10000.01,0.00010516,2]
[404321472,1770058213435,-10000.01,0.00010516,2]
[404321473,1770058213568,-10000.01,0.00010516,2]
[404321474,1770058213713,-10000.01,0.00010516,2]
[404321475,1770058213843,-10000.01,0.00010516,2]
[404321476,1770058213972,-10000.01,0.00010516,2]
[404321477,1770058214093,-10000.01,0.00010516,2]
[404321478,1770058214223,-10000.01,0.00010516,2]
[404321479,1770058214365,-10000.01,0.00010516,2]
[404321480,1770058214477,-10000.01,0.00010516,2]
[404321481,1770058220012,-10000.01,0.00010516,2]
[404321482,1770058220025,-10000.01,0.00010516,2]
[404321483,1770058220039,-10000.01,0.00010516,2]
[404321484,1770058220052,-10000.01,0.00010516,2]
[404321485,1770058220080,-10000.01,0.00010516,2]
[404321486,1770058222708,-3532.4841622,0.00010516,2]
[404321487,1770058222768,-236.0,0.00010516,2]
[404321494,1770058231845,-250.0,0.00010542,2]
[404321495,1770058231855,-300.0,0.00010542,2]
[404321496,1770058231865,-230.0,0.00010569,2]
[404321497,1770058231874,-200.0,0.00010621,2]
[404321498,1770058231884,-300.0,0.00010647,2]
[404321499,1770058231893,-300.0,0.00010647,2]
[404321500,1770058231903,-200.0,0.00010727,2]
[404321501,1770058231912,-384.99999942,0.000108,2]
[404321502,1770058231927,-486.73000058,0.000108,2]
[404321503,1770058231937,-948.90299507,0.000108,2]
[404321504,1770058231946,-115422.05742844,0.0001081,2]
[404321505,1770058231957,-20213.80581464,0.0001081,2]
[404321506,1770058231967,-200.0,0.00010835,2]
[404321507,1770058231976,-159.52608092,0.00010842,2]
[404321508,1770058231986,-500.0,0.00010842,2]
[404321509,1770058231995,-1864.0,0.00010842,2]
[404321510,1770058232005,-500.0,0.00010842,2]
[404321511,1770058232015,-806.0,0.00010842,2]
[404321512,1770058232024,-500.0,0.00010842,2]
[404321513,1770058232034,-500.0,0.00010897,2]
[404321514,1770058232043,-1864.0,0.00010897,2]
[404321515,1770058232052,-504.1991344,0.00010897,2]
[404321516,1770058232062,-806.0,0.00010897,2]
[404321517,1770058232071,-500.0,0.00010897,2]
[404321518,1770058232080,-1000.0,0.00010899,2]
[404321519,1770058232090,-4999.99,0.00010899,2]
[404321520,1770058232101,-150.99,0.00010899,2]
[404321521,1770058232110,-1553.29,0.00010899,2]
[404321523,1770058232120,-14610.22,0.00010899,2]
[404321525,1770058232129,-9999.99,0.00010899,2]
[404321527,1770058232139,-5610.40704684,0.00010899,2]
[404321529,1770058232150,-28436.16295316,0.00010899,2]
[404321531,1770058232159,-9999.99,0.00010899,2]
[404321533,1770058232168,-25445.25,0.00010899,2]
[404321536,1770058232177,-9999.99,0.00010899,2]
[404321539,1770058232186,-999.99,0.00010899,2]
[404321542,1770058232195,-9999.99,0.00010899,2]
[404321545,1770058232204,-2979.54,0.00010899,2]
[404321548,1770058232214,-1539.28,0.00010899,2]
[404321551,1770058232223,-150.99,0.00010899,2]
[404321553,1770058232232,-9665.24839994,0.00010899,2]
[404321556,1770058237968,-2500.0,0.0001071,2]
[404321557,1770058237980,-334.74160006,0.00010899,2]
[404321558,1770058237991,-299.99,0.00010899,2]
[404321559,1770058238001,-427.52,0.00010899,2]
[404321560,1770058238011,-9156.55,0.00010899,2]
[404321561,1770058238020,-14009.2,0.00010899,2]
[404321562,1770058238030,-260706.89,0.00010899,2]
[404321563,1770058238041,-1470.33,0.00010899,2]
[404321564,1770058238051,-200.0,0.000109,2]
[404321565,1770058238061,-1201.39,0.000109,2]
[404321566,1770058238071,-348.93,0.000109,2]
[404321567,1770058238080,-433.69,0.000109,2]
[404321568,1770058238091,-499.99,0.000109,2]
[404321569,1770058238100,-3177.4196175,0.000109,2]
[404321570,1770058238110,-3177.4196175,0.000109,2]
[404321571,1770058238120,-200.0,0.00010943,2]
[404321572,1770058238129,-500.0,0.00010952,2]
[404321573,1770058238139,-1864.0,0.00010952,2]
[404321574,1770058238148,-806.0,0.00010952,2]
[404321575,1770058238158,-500.0,0.00010952,2]
[404321576,1770058238167,-500.0,0.00010956,2]
[404321577,1770058238180,-150.0,0.00010956,2]
[404321578,1770058238190,-500.0,0.00010956,2]
[404321579,1770058238199,-500.0,0.00010956,2]
[404321580,1770058238209,-500.0,0.00010956,2]
[404321581,1770058238219,-1215.0,0.00010956,2]
[404321582,1770058238228,-150.0,0.00010956,2]
[404321585,1770058238239,-150.0,0.00010956,2]
[404321586,1770058238248,-682.0,0.00010956,2]
[404321588,1770058238258,-500.0,0.00010956,2]
[404321590,1770058238267,-500.0,0.00010956,2]
[404321591,1770058238277,-150.0,0.00010956,2]
[404321592,1770058238286,-563.0,0.00010956,2]
[404321593,1770058238295,-500.0,0.00010956,2]
[404321594,1770058238305,-500.0,0.00010959,2]
[404321595,1770058238315,-493.01262256,0.00010959,2]
[404321596,1770058238324,-1448.0,0.00010976,2]
[404321597,1770058238334,-379.87643987,0.00010987,2]
[404321598,1770058238343,-643.0,0.00010998,2]
[404321599,1770058238352,-329.99262105,0.00011006,2]
[404321600,1770058238362,-1864.0,0.00011006,2]
[404321601,1770058238371,-806.0,0.00011006,2]
[404321602,1770058238381,-500.0,0.00011006,2]
[404321603,1770058238390,-200.0,0.00011009,2]
[404321604,1770058238399,-150.0,0.00011011,2]
[404321605,1770058238412,-500.0,0.00011011,2]
[404321606,1770058238422,-500.0,0.00011011,2]
[404321607,1770058238432,-500.0,0.00011011,2]
[404321608,1770058238443,-1215.0,0.00011011,2]
[404321609,1770058238452,-150.0,0.00011011,2]
[404321610,1770058238461,-150.0,0.00011011,2]
[404321611,1770058238471,-682.0,0.00011011,2]
[404321612,1770058238482,-501.86439171,0.00011011,2]
[404321613,1770058238491,-500.0,0.00011011,2]
[404321614,1770058238501,-150.0,0.00011011,2]
[404321615,1770058238510,-563.0,0.00011011,2]
[404321616,1770058238520,-500.0,0.00011011,2]
[404321617,1770058238530,-3524.94248645,0.00011016,2]
[404321618,1770058238540,-500.0,0.00011019,2]
[404321619,1770058238549,-500.0,0.00011019,2]
[404321620,1770058238568,-500.0,0.00011019,2]
[404321621,1770058238580,-500.0,0.00011019,2]
[404321622,1770058238591,-150.0,0.00011019,2]
[404321623,1770058238601,-523.0,0.00011019,2]
[404321624,1770058238611,-546.0,0.00011019,2]
[404321625,1770058238621,-500.0,0.00011019,2]
[404321626,1770058238631,-500.0,0.00011019,2]
[404321627,1770058238641,-500.0,0.00011019,2]
[404321628,1770058238651,-150.0,0.00011019,2]
[404321629,1770058238661,-150.0,0.00011019,2]
[404321630,1770058238672,-456.97,0.00011025,2]
[404321631,1770058238682,-459.0,0.00011034,2]
[404321632,1770058238692,-1966.0,0.00011044,2]
[404321633,1770058238702,-332.0,0.00011056,2]
[404321634,1770058238712,-1864.0,0.00011061,2]
[404321635,1770058238722,-806.0,0.00011061,2]
[404321636,1770058238732,-500.0,0.00011061,2]
[404321637,1770058238742,-200.0,0.00011064,2]
[404321638,1770058238752,-500.0,0.00011064,2]
[404321639,1770058238763,-200.0,0.00011064,2]
[404321640,1770058238773,-150.0,0.00011066,2]
[404321641,1770058238783,-500.0,0.00011066,2]
[404321642,1770058238793,-206.01499169,0.00011066,2]
[404321643,1770058238803,-500.0,0.00011066,2]
[404321644,1770058238813,-1215.0,0.00011066,2]
[404321645,1770058238823,-150.0,0.00011066,2]
[404321646,1770058238835,-150.27829964,0.00011066,2]
[404321647,1770058238846,-682.0,0.00011066,2]
[404321648,1770058238856,-500.0,0.00011066,2]
[404321649,1770058238866,-151.13726251,0.00011066,2]
[404321650,1770058238876,-563.0,0.00011066,2]
[404321651,1770058238886,-173.77378774,0.00011066,2]
[404321652,1770058238896,-954.0,0.00011066,2]
[404321653,1770058238905,-500.0,0.00011074,2]
[404321654,1770058238915,-500.0,0.00011074,2]
[404321655,1770058238924,-500.0,0.00011074,2]
[404321656,1770058238934,-500.0,0.00011074,2]
[404321657,1770058238943,-523.0,0.00011074,2]
[404321658,1770058238953,-546.0,0.00011074,2]
[404321659,1770058238963,-500.0,0.00011074,2]
[404321660,1770058238973,-500.0,0.00011074,2]
[404321661,1770058238983,-500.0,0.00011074,2]
[404321662,1770058238992,-166.03286464,0.00011074,2]
[404321663,1770058239003,-199.0,0.00011078,2]
[404321664,1770058239012,-882.0,0.00011088,2]
[404321665,1770058239022,-231.48188221,0.00011097,2]
[404321666,1770058239031,-324.0152118,0.00011098,2]
[404321667,1770058239042,-226.33639315,0.00011098,2]
[404321668,1770058239052,-500.0,0.00011098,2]
[404321669,1770058239062,-500.0,0.00011098,2]
[404321670,1770058239071,-444.06597221,0.00011098,2]
[404321671,1770058239081,-164.54508129,0.00011098,2]
[404321672,1770058239092,-531.79856576,0.00011098,2]
[404321673,1770058239102,-58089.05272459,0.00011099,2]
[404321674,1770058239111,-54254.59313592,0.00011099,2]
[404321675,1770058239125,-1864.0,0.00011116,2]
[404321676,1770058239135,-500.0,0.00011116,2]
[404321677,1770058239144,-806.0,0.00011116,2]
[404321678,1770058239154,-200.0,0.00011119,2]
[404321679,1770058239163,-500.0,0.0001112,2]
[404321680,1770058239172,-500.0,0.0001112,2]
[404321681,1770058239182,-1215.0,0.0001112,2]
[404321682,1770058239192,-235.57065382,0.0001112,2]
[404321683,1770058239201,-682.0,0.0001112,2]
[404321684,1770058239211,-500.0,0.0001112,2]
[404321685,1770058239221,-563.0,0.0001112,2]
[404321686,1770058239231,-500.0,0.00011129,2]
[404321687,1770058239241,-500.0,0.00011129,2]
[404321688,1770058239250,-403.22250167,0.00011129,2]
[404321689,1770058239260,-500.0,0.00011129,2]
[404321690,1770058239270,-523.0,0.00011129,2]
[404321691,1770058239280,-546.0,0.00011129,2]
[404321692,1770058239290,-500.0,0.00011129,2]
[404321693,1770058239300,-500.0,0.00011129,2]
[404321694,1770058239309,-500.0,0.00011129,2]
[404321695,1770058239319,-554.0,0.00011158,2]
[404321696,1770058239328,-1864.0,0.00011171,2]
[404321697,1770058239339,-806.0,0.00011171,2]
[404321698,1770058239348,-500.0,0.00011171,2]
[404321699,1770058239358,-406.45210639,0.00011175,2]
[404321700,1770058239368,-500.0,0.00011175,2]
[404321701,1770058239378,-1215.0,0.00011175,2]
[404321702,1770058239387,-682.0,0.00011175,2]
[404321703,1770058239397,-500.0,0.00011175,2]
[404321704,1770058239410,-563.0,0.00011175,2]
[404321705,1770058239419,-500.0,0.00011183,2]
[404321706,1770058239429,-500.0,0.00011183,2]
[404321707,1770058239438,-500.0,0.00011183,2]
[404321708,1770058239448,-523.0,0.00011183,2]
[404321709,1770058239458,-546.0,0.00011183,2]
[404321710,1770058239468,-500.0,0.00011183,2]
[404321711,1770058239478,-500.0,0.00011183,2]
[404321712,1770058239488,-500.0,0.00011183,2]
[404321713,1770058239498,-222.7,0.00011203,2]
[404321714,1770058239511,-1864.0,0.00011226,2]
[404321715,1770058239522,-806.0,0.00011226,2]
[404321716,1770058239531,-500.0,0.00011226,2]
[404321717,1770058239541,-500.0,0.0001123,2]
[404321718,1770058239551,-1215.0,0.0001123,2]
[404321719,1770058239560,-500.0,0.0001123,2]
[404321720,1770058239570,-682.0,0.0001123,2]
[404321721,1770058239579,-627.9058201,0.0001123,2]
[404321722,1770058239589,-563.0,0.0001123,2]
[404321723,1770058239600,-200.0,0.0001123,2]
[404321724,1770058239610,-16804.9,0.00011233,2]
[404321725,1770058239620,-212.94,0.00011233,2]
[404321726,1770058239629,-500.0,0.00011238,2]
[404321727,1770058239639,-500.0,0.00011238,2]
[404321728,1770058239648,-500.0,0.00011238,2]
[404321729,1770058239658,-523.0,0.00011238,2]
[404321730,1770058239667,-546.0,0.00011238,2]
[404321731,1770058239678,-500.0,0.00011238,2]
[404321732,1770058239688,-262.59942725,0.00011238,2]
[404321733,1770058239698,-500.0,0.00011238,2]
[404321734,1770058239708,-4817.54,0.00011272,2]
[404321735,1770058239719,-1864.0,0.0001128,2]
[404321736,1770058239730,-500.0,0.0001128,2]
[404321737,1770058239740,-806.0,0.0001128,2]
[404321738,1770058239750,-1215.0,0.00011285,2]
[404321739,1770058239760,-500.0,0.00011285,2]
[404321740,1770058239771,-682.0,0.00011285,2]
[404321741,1770058239780,-563.0,0.00011285,2]
[404321742,1770058239790,-500.0,0.00011293,2]
[404321743,1770058239800,-500.0,0.00011293,2]
[404321744,1770058239810,-500.0,0.00011293,2]
[404321745,1770058239819,-523.0,0.00011293,2]
[404321746,1770058239829,-546.0,0.00011293,2]
[404321747,1770058239838,-500.0,0.00011293,2]
[404321748,1770058239848,-500.0,0.00011293,2]
[404321749,1770058239857,-234.50786848,0.00011293,2]
[404321750,1770058239867,-500.0,0.00011293,2]
[404321751,1770058239876,-500.0,0.00011293,2]
[404321752,1770058239886,-150.0,0.00011293,2]
[404321753,1770058239896,-150.86853195,0.00011293,2]
[404321754,1770058239905,-150.28399281,0.00011293,2]
[404321755,1770058239914,-500.0,0.00011293,2]
[404321756,1770058239924,-150.0,0.00011293,2]
[404321757,1770058239934,-150.10178686,0.00011293,2]
[404321758,1770058239943,-150.0,0.00011293,2]
[404321759,1770058239953,-150.0,0.00011293,2]
[404321760,1770058239963,-1864.0,0.00011335,2]
[404321761,1770058239972,-806.0,0.00011335,2]
[404321762,1770058239982,-500.0,0.00011335,2]
[404321763,1770058239992,-1215.0,0.0001134,2]
[404321764,1770058240001,-500.0,0.0001134,2]
[404321765,1770058240011,-682.0,0.0001134,2]
[404321766,1770058240020,-563.0,0.0001134,2]
[404321767,1770058240031,-200.0,0.00011343,2]
[404321768,1770058240040,-506.60033805,0.00011348,2]
[404321769,1770058240050,-500.0,0.00011348,2]
[404321770,1770058240060,-500.0,0.00011348,2]
[404321771,1770058240069,-523.0,0.00011348,2]
[404321772,1770058240078,-546.0,0.00011348,2]
[404321773,1770058240088,-500.0,0.00011348,2]
[404321774,1770058240097,-500.0,0.00011348,2]
[404321775,1770058240107,-599.274,0.00011348,2]
[404321776,1770058240116,-500.0,0.00011348,2]
[404321777,1770058240125,-150.0,0.00011348,2]
[404321778,1770058240135,-500.0,0.00011348,2]
[404321779,1770058240144,-150.0,0.00011348,2]
[404321780,1770058240153,-155.94467862,0.00011348,2]
[404321781,1770058240163,-150.0,0.00011348,2]
[404321782,1770058240172,-150.0,0.00011386,2]
[404321783,1770058240181,-1864.0,0.0001139,2]
[404321784,1770058240191,-806.0,0.0001139,2]
[404321785,1770058240200,-500.0,0.0001139,2]
[404321786,1770058240214,-1215.0,0.00011394,2]
[404321787,1770058240223,-500.0,0.00011394,2]
[404321788,1770058240233,-682.0,0.00011394,2]
[404321789,1770058240242,-563.0,0.00011394,2]
[404321790,1770058240252,-500.0,0.00011403,2]
[404321791,1770058240262,-500.0,0.00011403,2]
[404321792,1770058240271,-523.0,0.00011403,2]
[404321793,1770058240280,-546.0,0.00011403,2]
[404321794,1770058240290,-500.0,0.00011403,2]
[404321795,1770058240299,-500.0,0.00011403,2]
[404321796,1770058240309,-500.0,0.00011403,2]
[404321797,1770058240320,-150.0,0.00011403,2]
[404321798,1770058240329,-500.0,0.00011403,2]
[404321799,1770058240339,-150.0,0.00011403,2]
[404321800,1770058240348,-175.66727683,0.00011403,2]
[404321801,1770058240357,-1864.0,0.00011445,2]
[404321802,1770058240367,-806.0,0.00011445,2]
[404321803,1770058240376,-500.0,0.00011445,2]
[404321804,1770058240386,-1215.0,0.00011449,2]
[404321805,1770058240396,-500.0,0.00011449,2]
[404321806,1770058240409,-682.0,0.00011449,2]
[404321807,1770058240419,-563.0,0.00011449,2]
[404321808,1770058240428,-6998.0119,0.00011452,2]
[404321809,1770058240437,-500.0,0.00011457,2]
[404321810,1770058240447,-500.0,0.00011457,2]
[404321811,1770058240457,-523.0,0.00011457,2]
[404321812,1770058240466,-546.0,0.00011457,2]
[404321813,1770058240477,-500.0,0.00011457,2]
[404321814,1770058240487,-500.0,0.00011457,2]
[404321815,1770058240496,-433.41072536,0.00011457,2]
[404321816,1770058240505,-212.45183981,0.00011457,2]
[404321817,1770058240515,-500.0,0.00011457,2]
[404321818,1770058240524,-150.0,0.00011457,2]
[404321819,1770058240534,-1864.0,0.000115,2]
[404321820,1770058240543,-382.66757937,0.000115,2]
[404321821,1770058240553,-806.0,0.000115,2]
[404321822,1770058240563,-500.0,0.00011504,2]
[404321823,1770058240572,-1215.0,0.00011504,2]
[404321824,1770058240583,-500.0,0.00011504,2]
[404321825,1770058240594,-682.0,0.00011504,2]
[404321826,1770058240604,-563.0,0.00011504,2]
[404321827,1770058240613,-1000.0,0.00011505,2]
[404321828,1770058240624,-500.0,0.00011512,2]
[404321829,1770058240633,-500.0,0.00011512,2]
[404321830,1770058240642,-523.0,0.00011512,2]
[404321831,1770058240652,-546.0,0.00011512,2]
[404321832,1770058240661,-500.0,0.00011512,2]
[404321833,1770058240671,-500.0,0.00011512,2]
[404321834,1770058240680,-500.0,0.00011512,2]
[404321835,1770058240689,-291.47561802,0.00011512,2]
[404321836,1770058240699,-54254.59313589,0.00011512,2]
[404321837,1770058240709,-16231.0,0.00011534,2]
[404321838,1770058240718,-255.0,0.00011535,2]
[404321839,1770058240727,-1864.0,0.00011554,2]
[404321840,1770058240737,-806.0,0.00011554,2]
[404321841,1770058240747,-1215.0,0.00011559,2]
[404321842,1770058240756,-500.0,0.00011559,2]
[404321843,1770058240767,-682.0,0.00011559,2]
[404321844,1770058240777,-563.0,0.00011559,2]
[404321845,1770058240788,-300.0,0.0001156,2]
[404321846,1770058240799,-500.0,0.00011567,2]
[404321847,1770058240808,-500.0,0.00011567,2]
[404321848,1770058240819,-523.0,0.00011567,2]
[404321849,1770058240828,-546.0,0.00011567,2]
[404321850,1770058240839,-500.0,0.00011567,2]
[404321851,1770058240849,-601.87473631,0.00011567,2]
[404321852,1770058240858,-370.20661223,0.00011567,2]
[404321853,1770058240867,-441.47,0.00011567,2]
[404321854,1770058240877,-1680.0,0.00011567,2]
[404321855,1770058240887,-150.33828097,0.00011567,2]
[404321856,1770058240896,-250.0,0.00011567,2]
[404321857,1770058240905,-500.0,0.00011567,2]
[404321858,1770058240914,-539.56453595,0.00011567,2]
[404321859,1770058240924,-195.0,0.00011567,2]
[404321860,1770058240934,-193.0,0.00011567,2]
[404321861,1770058240943,-195.0,0.00011567,2]
[404321862,1770058240952,-300.0,0.00011567,2]
[404321863,1770058240962,-195.0,0.00011567,2]
[404321864,1770058240971,-195.0,0.00011567,2]
[404321865,1770058240980,-250.0,0.00011568,2]
[404321866,1770058240989,-300.0,0.00011568,2]
[404321867,1770058240999,-500.0,0.00011568,2]
[404321868,1770058241008,-500.0,0.00011568,2]
[404321869,1770058241018,-500.0,0.00011568,2]
[404321870,1770058241027,-195.0,0.00011568,2]
[404321871,1770058241036,-58089.05272456,0.00011588,2]
[404321872,1770058241046,-1864.0,0.00011609,2]
[404321873,1770058241055,-806.0,0.00011609,2]
[404321874,1770058241064,-200.0,0.00011612,2]
[404321875,1770058241073,-500.0,0.00011612,2]
[404321876,1770058241082,-200.0,0.00011612,2]
[404321877,1770058241091,-1215.0,0.00011614,2]
[404321878,1770058241101,-500.0,0.00011614,2]
[404321879,1770058241110,-682.0,0.00011614,2]
[404321880,1770058241119,-563.0,0.00011614,2]
[404321881,1770058241128,-500.0,0.00011622,2]
[404321882,1770058241138,-500.0,0.00011622,2]
[404321883,1770058241147,-523.0,0.00011622,2]
[404321884,1770058241156,-546.0,0.00011622,2]
[404321885,1770058241166,-500.0,0.00011622,2]
[404321886,1770058241175,-1249.83318951,0.00011663,2]
[404321887,1770058241184,-1864.0,0.00011664,2]
[404321888,1770058241194,-806.0,0.00011664,2]
[404321889,1770058241203,-1215.0,0.00011668,2]
[404321890,1770058241214,-500.0,0.00011668,2]
[404321891,1770058241224,-682.0,0.00011668,2]
[404321892,1770058241235,-563.0,0.00011668,2]
[404321893,1770058241245,-500.0,0.00011677,2]
[404321894,1770058241255,-500.0,0.00011677,2]
[404321895,1770058241264,-523.0,0.00011677,2]
[404321896,1770058241275,-546.0,0.00011677,2]
[404321897,1770058241286,-500.0,0.00011677,2]
[404321898,1770058241295,-1864.0,0.00011719,2]
[404321899,1770058241306,-806.0,0.00011719,2]
[404321900,1770058241317,-1215.0,0.00011723,2]
[404321901,1770058241327,-500.0,0.00011723,2]
[404321902,1770058241338,-682.0,0.00011723,2]
[404321903,1770058241348,-563.0,0.00011723,2]
[404321904,1770058241357,-500.0,0.00011731,2]
[404321905,1770058241367,-500.0,0.00011731,2]
[404321906,1770058241378,-523.0,0.00011731,2]
[404321907,1770058241387,-546.0,0.00011731,2]
[404321908,1770058241398,-500.0,0.00011731,2]
[404321909,1770058241411,-1864.0,0.00011774,2]
[404321910,1770058241422,-806.0,0.00011774,2]
[404321911,1770058241432,-500.0,0.00011778,2]
[404321912,1770058241443,-1215.0,0.00011778,2]
[404321913,1770058241453,-500.0,0.00011778,2]
[404321914,1770058241462,-682.0,0.00011778,2]
[404321915,1770058241471,-563.0,0.00011778,2]
[404321916,1770058241481,-500.0,0.00011786,2]
[404321917,1770058241491,-591.68158157,0.00011786,2]
[404321918,1770058241500,-523.0,0.00011786,2]
[404321919,1770058241510,-546.0,0.00011786,2]
[404321920,1770058241520,-228.2574055,0.00011786,2]
[404321921,1770058241529,-3177.4196175,0.00011813,2]
[404321922,1770058241538,-3177.4196175,0.00011813,2]
[404321923,1770058241547,-790.39948539,0.00011823,2]
[404321924,1770058241557,-1864.0,0.00011828,2]
[404321925,1770058241568,-806.0,0.00011828,2]
[404321926,1770058241580,-1215.0,0.00011833,2]
[404321927,1770058241591,-500.0,0.00011833,2]
[404321928,1770058241600,-682.0,0.00011833,2]
[404321929,1770058241609,-563.0,0.00011833,2]
[404321930,1770058241619,-500.0,0.00011841,2]
[404321931,1770058241629,-523.0,0.00011841,2]
[404321932,1770058241639,-546.0,0.00011841,2]
[404321933,1770058241650,-441.47,0.00011841,2]
[404321934,1770058241661,-1864.0,0.00011883,2]
[404321935,1770058241670,-806.0,0.00011883,2]
[404321936,1770058241681,-500.0,0.00011888,2]
[404321937,1770058241691,-1215.0,0.00011888,2]
[404321938,1770058241702,-682.0,0.00011888,2]
[404321939,1770058241712,-563.0,0.00011888,2]
[404321940,1770058241721,-500.0,0.00011896,2]
[404321941,1770058241731,-523.0,0.00011896,2]
[404321942,1770058241741,-546.0,0.00011896,2]
[404321943,1770058241751,-1000.0,0.00011899,2]
[404321944,1770058241760,-322.6107,0.000119,2]
[404321945,1770058241771,-151.0,0.000119,2]
[404321946,1770058242007,-578.20924308,0.000119,2]
[404321947,1770058242018,-250.0,0.000119,2]
[404321948,1770058242027,-174.61919141,0.000119,2]
[404321949,1770058242037,-250.0,0.000119,2]
[404321950,1770058242046,-209.40437684,0.000119,2]
[404321951,1770058242055,-250.0,0.000119,2]
[404321952,1770058242064,-250.0,0.000119,2]
[404321953,1770058242074,-250.0,0.000119,2]
[404321954,1770058242083,-250.0,0.000119,2]
[404321955,1770058242097,-859.80605061,0.000119,2]
[404321956,1770058242107,-500.0,0.000119,2]
[404321957,1770058242117,-500.0,0.000119,2]
[404321958,1770058242126,-500.0,0.000119,2]
[404321959,1770058242135,-500.0,0.000119,2]
[404321960,1770058242145,-500.0,0.000119,2]
[404321961,1770058242154,-500.0,0.000119,2]
[404321962,1770058242164,-500.0,0.000119,2]
[404321963,1770058242173,-500.0,0.000119,2]
[404321964,1770058242183,-1428.38747117,0.000119,2]
[404321965,1770058242192,-500.0,0.000119,2]
[404321966,1770058242203,-500.0,0.000119,2]
[404321967,1770058242214,-500.0,0.000119,2]
[404321968,1770058242224,-209.40437684,0.000119,2]
[404321969,1770058242234,-209.40437684,0.000119,2]
[404321970,1770058242244,-250.0,0.000119,2]
[404321971,1770058242253,-250.0,0.000119,2]
[404321972,1770058242263,-250.0,0.000119,2]
[404321973,1770058242273,-250.0,0.000119,2]
[404321974,1770058242282,-721.12765535,0.000119,2]
[404321975,1770058242292,-250.0,0.000119,2]
[404321976,1770058242301,-250.0,0.000119,2]
[404321977,1770058242310,-250.0,0.000119,2]
[404321978,1770058242321,-250.0,0.000119,2]
[404321979,1770058242332,-250.0,0.000119,2]
[404321980,1770058242342,-250.0,0.000119,2]